bitfinex-derivatives/quotes_ETHF0:USTF0_20240822
["timestamp","ask_amount","ask_price","bid_price","bid_amount"]
[1724336267498,1.2683,2616.8,2616.2,3.21142671]
[1724336267691,0.38205,2616.7,2616.4,0.38208]
[1724336267888,0.38205,2616.7,2616.2,3.21142671]
[1724336267889,1.2683,2616.8,2616.5,0.38207]
[1724336268093,0.38205,2616.7,2616.2,3.21142671]
[1724336268282,0.38205,2616.7,2616.4,0.38208]
[1724336268486,0.95511,2616.7,2616.2,3.21142671]
[1724336268684,0.95511,2616.7,2616.2,0.00362671]
[1724336268888,0.95515,2616.6,2616.2,0.00362671]
[1724336269192,0.3821,2616.4,2616.2,0.00362671]
[1724336269389,0.3821,2616.3,2616.2,0.00362671]
[1724336269792,0.95515,2616.6,2616.2,0.00362671]
[1724336269996,0.3821,2616.3,2616.2,0.00362671]
[1724336270492,0.38207,2616.5,2616.2,0.00362671]
[1724336270685,1.47713282,2616.7,2616.2,0.00362671]
[1724336270997,0.38206,2616.6,2616.3,0.3821]
[1724336271192,0.38205,2616.7,2616.4,0.38208]
[1724336271386,1.23593,2616.8,2616.5,0.38206]
[1724336271789,1.23593,2616.8,2616.6,0.38205]
[1724336272194,0.8539,2616.8,2616.7,0.38204]
[1724336272501,0.8539,2616.8,2616.4,3.2078]
[1724336272502,1.23593,2616.8,2616.6,0.38205]
[1724336272800,1.23594,2616.8,2616.6,0.38205]
[1724336272984,0.8539,2616.8,2616.7,0.38204]
[1724336273187,0.00386545,2617.0,2616.9,0.38201]
[1724336273886,0.38586545,2617.0,2616.8,0.38202]
[1724336274100,0.38586545,2617.0,2616.9,0.38201]
[1724336274101,0.00386545,2617.0,2616.9,0.38201]
[1724336274804,0.38586545,2617.0,2616.9,0.38201]
[1724336274998,0.00386545,2617.0,2616.8,0.38202]
[1724336275196,0.00386545,2617.0,2616.5,4.953]
[1724336275398,0.00386545,2617.0,2616.6,0.38205]
[1724336275698,0.38207,2616.5,2616.3,0.79469]
[1724336275908,0.38205,2616.7,2616.5,0.38206]
[1724336276107,0.38204,2616.8,2616.3,0.4126]
[1724336276398,0.38203,2616.8,2616.5,0.38206]
[1724336276603,0.38204,2616.7,2616.5,0.38206]
[1724336276795,0.38206,2616.6,2616.4,0.38207]
[1724336277003,0.80083,2616.8,2616.5,0.38207]
[1724336277207,0.80083,2616.8,2616.3,0.4126]
[1724336277396,0.38204,2616.7,2616.5,0.38206]
[1724336277592,0.80084,2616.8,2616.6,3.2078]
[1724336277792,0.4188,2616.8,2616.6,3.58985]
[1724336277993,0.80083,2616.8,2616.6,3.58985]
[1724336278393,0.4188,2616.8,2616.6,3.2078]
[1724336278598,0.80083,2616.8,2616.6,0.38205]
[1724336278800,0.80083,2616.8,2616.6,3.58985]
[1724336279110,0.38207,2616.5,2616.3,0.79469]
[1724336279403,0.38206,2616.6,2616.3,0.79469]
[1724336279605,1.3739,2616.8,2616.3,0.4126]
[1724336279803,0.3821,2616.3,2616.2,3.21142671]
[1724336279994,0.3821,2616.3,2616.2,0.00362671]
[1724336280507,4.2045,2616.3,2616.2,0.00362671]
[1724336281709,0.8452,2616.4,2616.2,0.00362671]
[1724336281710,0.4305,2616.4,2616.2,0.00362671]
[1724336281900,0.3821,2616.3,2616.2,0.00362671]
[1724336282209,0.4305,2616.4,2616.2,0.00362671]
[1724336282408,0.3821,2616.3,2616.2,0.00362671]
[1724336282804,4.2045,2616.3,2616.2,0.00362671]
[1724336283202,5.15975,2616.3,2616.2,0.00362671]
[1724336283503,5.15975,2616.3,2615.4,0.00574053]
[1724336283504,0.95534,2616.1,2615.4,0.00574053]
[1724336283710,0.38222,2615.5,2615.4,0.00574053]
[1724336283902,1.47713282,2616.0,2615.4,0.00574053]
[1724336283903,0.38221,2615.6,2615.4,0.00574053]
[1724336284607,0.38221,2615.6,2615.4,0.00892573]
[1724336285001,0.38222,2615.5,2615.4,0.00892573]
[1724336285196,0.83111,2615.6,2615.4,0.00892573]
[1724336285608,0.4489,2615.6,2615.4,0.00892573]
[1724336285800,0.8311,2615.6,2615.4,0.00892573]
[1724336286309,0.38222,2615.5,2615.4,0.00892573]
[1724336286907,0.83111,2615.6,2615.4,0.00892573]
[1724336287114,0.38222,2615.5,2615.4,0.00892573]
[1724336289513,0.434,2615.7,2615.5,0.38221]
[1724336289812,0.434,2615.7,2615.4,0.00892573]
[1724336289813,0.81619,2615.7,2615.4,0.39114573]
[1724336290003,0.3822,2615.6,2615.4,0.39114573]
[1724336290312,0.38221,2615.5,2615.4,0.00892573]
[1724336291011,5.16095,2615.5,2615.4,0.00892573]
[1724336292010,10.16095,2615.5,2615.4,0.00892573]
[1724336292615,5.16095,2615.5,2615.4,0.00892573]
[1724336294115,11.11649,2615.5,2615.4,0.00892573]
[1724336294417,0.38231,2614.9,2614.7,0.81772]
[1724336295208,0.38232,2614.8,2614.7,0.43959093]
[1724336295413,0.38543737,2614.9,2614.7,0.82192093]
[1724336295620,0.00312737,2614.9,2614.7,3.64739093]
[1724336295819,0.38232,2614.8,2614.7,0.00419093]
[1724336296122,1.33812,2614.8,2614.7,0.00419093]
[1724336296326,0.81642,2614.8,2614.7,0.00419093]
[1724336296515,0.00312737,2614.9,2614.8,0.38232]
[1724336296919,0.00312737,2614.9,2614.8,1.21982]
[1724336297118,0.00312737,2614.9,2614.8,5.04382]
[1724336297414,0.00312737,2614.9,2614.8,19.34762626]
[1724336297619,0.00312737,2614.9,2614.8,5.04382]
[1724336297926,0.00574053,2615.1,2614.9,0.38229]
[1724336298428,0.00574053,2615.1,2615.0,4.20629]
[1724336299021,0.00574053,2615.1,2615.0,3.824]
[1724336299022,0.00891022,2615.1,2615.0,3.824]
[1724336299223,0.00891022,2615.1,2615.0,4.20629]
[1724336299419,0.00891022,2615.1,2615.0,9.20629]
[1724336299913,0.00891022,2615.1,2615.0,8.824]
[1724336300118,0.00891022,2615.1,2614.9,8.1608]
[1724336300331,0.00891022,2615.1,2614.9,11.9848]
[1724336300623,0.00891022,2615.1,2614.9,12.3671]
[1724336301713,0.00891022,2615.1,2615.0,0.38229]
[1724336302117,0.00891022,2615.1,2615.0,4.20629]
[1724336304213,0.00891022,2615.1,2615.0,3.824]
[1724336304412,0.00891022,2615.1,2614.9,3.2078]
[1724336304622,0.00891022,2615.1,2614.9,3.5901]
[1724336305913,0.00891022,2615.1,2614.9,3.2078]
[1724336306322,0.38229,2615.0,2614.9,3.2078]
[1724336306920,0.42311022,2615.1,2614.9,3.2078]
[1724336306921,0.80539022,2615.1,2614.9,3.2078]
[1724336307315,0.00891022,2615.1,2614.9,3.2078]
[1724336308127,0.00891022,2615.1,2614.9,3.6429]
[1724336308330,0.00891022,2615.1,2615.0,7.51029]
[1724336308520,0.00891022,2615.1,2615.0,7.93789]
[1724336308722,0.00891022,2615.1,2615.0,4.2516]
[1724336308921,0.00891022,2615.1,2615.0,3.824]
[1724336309432,0.00891022,2615.1,2614.9,4.02519]
[1724336309724,0.00891022,2615.1,2614.9,3.6429]
[1724336310115,0.00891022,2615.1,2615.0,0.38229]
[1724336311026,0.00891022,2615.1,2614.9,3.6429]
[1724336311027,0.00891022,2615.1,2614.9,4.02519]
[1724336311426,0.00891022,2615.1,2614.9,3.6429]
[1724336311833,0.00891022,2615.1,2614.9,3.2078]
[1724336311834,0.38229,2615.0,2614.9,3.2078]
[1724336312521,0.43341022,2615.1,2614.9,3.2078]
[1724336312718,0.81569022,2615.1,2614.9,3.2078]
[1724336312934,0.38229,2615.0,2614.9,3.2078]
[1724336313333,0.38229,2615.0,2614.7,0.00419093]
[1724336313334,0.38232,2614.8,2614.7,0.00419093]
[1724336313631,0.4292,2615.0,2614.7,0.00419093]
[1724336313941,0.4292,2615.0,2614.7,3.59432093]
[1724336314121,0.4292,2615.0,2614.7,0.00419093]
[1724336314327,0.38232,2614.8,2614.7,0.00419093]
[1724336314621,8.37072,2614.8,2614.7,0.00419093]
[1724336314823,13.37072,2614.8,2614.7,0.00419093]
[1724336315027,1.33822,2614.6,2614.5,0.00574053]
[1724336315333,0.38241,2614.2,2613.7,0.79778]
[1724336315535,0.38241,2614.2,2613.7,0.4153]
[1724336315828,0.38241,2614.2,2613.7,0.79778]
[1724336316028,7.7282,2614.5,2613.7,0.79778]
[1724336316029,0.3824,2614.3,2613.8,3.2078]
[1724336316329,0.3824,2614.3,2613.8,3.21354053]
[1724336316634,0.38241,2614.2,2613.8,3.21354053]
[1724336316821,0.38242,2614.1,2613.8,0.00574053]
[1724336317024,0.38239,2614.3,2613.8,0.00574053]
[1724336317223,3.2078,2614.4,2613.9,3.2078]
[1724336317429,0.38241,2614.2,2613.8,0.00574053]
[1724336318026,0.4219,2614.3,2613.8,0.00574053]
[1724336318027,0.80429,2614.3,2613.8,0.00574053]
[1724336318227,1.22729,2614.3,2613.8,0.00574053]
[1724336318527,0.423,2614.3,2613.9,3.2078]
[1724336318726,0.423,2614.3,2613.9,3.59024]
[1724336318922,0.423,2614.3,2613.9,3.2078]
[1724336319234,0.423,2614.3,2613.9,3.59024]
[1724336319432,0.423,2614.3,2613.9,3.2078]
[1724336320031,0.423,2614.3,2613.9,3.59025]
[1724336320829,0.423,2614.3,2614.0,0.38243]
[1724336321630,0.423,2614.3,2614.0,0.4292]
[1724336322532,0.8054,2614.3,2614.0,0.4292]
[1724336322834,0.423,2614.3,2613.9,3.2078]
[1724336323239,0.38243,2614.0,2613.9,3.2078]
[1724336323453,0.4303,2614.2,2613.8,0.00574053]
[1724336323454,1.33858,2613.9,2613.8,0.00574053]
[1724336323629,0.95613,2613.9,2613.7,0.00354762]
[1724336323829,0.38253,2613.4,2613.1,0.4244]
[1724336324045,0.38255,2613.3,2613.1,0.4244]
[1724336324242,0.38255,2613.3,2613.0,3.59038]
[1724336324639,0.38255,2613.3,2613.0,3.2078]
[1724336324939,0.38255,2613.3,2613.0,3.21079848]
[1724336325140,0.38255,2613.2,2613.0,3.21079848]
[1724336325441,0.38614361,2613.2,2613.0,3.21079848]
[1724336325943,0.38826053,2613.4,2613.3,0.77063639]
[1724336326444,4.21466053,2613.4,2613.3,0.77063639]
[1724336326852,4.21829704,2613.4,2613.3,0.77063639]
[1724336327139,0.00937704,2613.4,2613.3,1.15317639]
[1724336328739,0.00937704,2613.4,2613.3,7.41674]
[1724336329339,0.00937704,2613.4,2613.3,7.0342]
[1724336329847,0.00937704,2613.4,2613.1,0.81176]
[1724336330046,0.39189704,2613.4,2613.3,3.2078]
[1724336330432,0.39190704,2613.4,2613.1,0.4292]
[1724336330733,0.00937704,2613.4,2613.1,0.4292]
[1724336331047,0.00937704,2613.4,2613.3,0.38254]
[1724336331534,0.00937704,2613.4,2613.3,4.64874]
[1724336331939,0.00937704,2613.4,2613.3,0.4398]
[1724336332139,0.00937704,2613.4,2613.3,7.85654]
[1724336332644,0.00937704,2613.4,2613.3,0.4398]
[1724336332846,0.00937704,2613.4,2613.3,3.6476]
[1724336333446,0.00937704,2613.4,2613.3,0.4398]
[1724336333642,0.00937704,2613.4,2613.1,0.4292]
[1724336333843,0.00937704,2613.4,2613.0,0.00299848]
[1724336334248,0.38255,2613.2,2613.0,0.00299848]
[1724336335045,0.38255,2613.2,2613.0,3.21079848]
[1724336335254,0.38255,2613.2,2613.0,0.00299848]
[1724336335441,0.38255,2613.2,2613.0,3.21079848]
[1724336335749,0.38255,2613.2,2613.0,0.00299848]
[1724336335953,0.38255,2613.3,2613.0,0.00299848]
[1724336336144,0.38255,2613.3,2613.0,3.59336848]
[1724336337053,0.00937704,2613.4,2613.3,0.38254]
[1724336337552,0.38255,2613.3,2613.0,3.21079848]
[1724336337753,0.00937704,2613.4,2613.1,0.38256]
[1724336338145,0.00937704,2613.4,2613.0,3.21079848]
[1724336338348,0.38255,2613.3,2613.0,0.38557848]
[1724336338550,0.00937704,2613.4,2613.0,0.00299848]
[1724336338854,0.38255,2613.3,2613.0,0.38557848]
[1724336339045,0.39190704,2613.4,2613.1,3.59036]
[1724336339251,0.00937704,2613.4,2613.2,0.38255]
[1724336339560,0.00937704,2613.4,2613.2,0.38254]
[1724336339940,0.00937704,2613.4,2613.1,3.2078]
[1724336340146,0.00937704,2613.4,2613.3,1.33889]
[1724336340547,0.38241,2614.2,2613.4,0.95631]
[1724336340752,0.38241,2614.2,2613.9,0.38244]
[1724336341043,5.3692,2614.4,2613.8,3.2078]
[1724336341350,5.3692,2614.4,2613.5,3.7556]
[1724336341351,0.38239,2614.3,2614.1,3.2078]
[1724336341552,0.00280434,2614.3,2613.7,3.2078]
[1724336341748,0.00280434,2614.3,2614.0,3.2078]
[1724336341749,0.3824,2614.2,2614.0,3.2078]
[1724336341946,0.38242,2614.1,2614.0,3.2078]
[1724336342255,0.38241,2614.2,2613.8,0.38245]
[1724336342456,0.38242,2614.1,2613.8,0.38245]
[1724336342664,0.00280434,2614.3,2613.8,0.38245]
[1724336342665,0.38241,2614.2,2613.8,0.38245]
[1724336343146,0.00280434,2614.3,2614.2,0.3824]
[1724336343353,0.00280434,2614.3,2614.0,0.19116178]
[1724336343662,0.38519434,2614.3,2613.9,3.6448]
[1724336343865,0.00280434,2614.3,2613.7,0.83407]
[1724336344058,0.3824,2614.2,2613.8,0.38246]
[1724336344271,0.81980434,2614.3,2613.8,0.38246]
[1724336344555,0.3824,2614.2,2613.9,3.2078]
[1724336344754,0.38241,2614.2,2613.9,3.2078]
[1724336345066,0.38241,2614.2,2613.7,0.83407]
[1724336345558,0.43740434,2614.3,2613.7,0.83407]
[1724336345559,0.38242,2614.1,2613.7,0.4516]
[1724336346053,0.38241,2614.2,2613.7,0.83407]
[1724336346258,0.81980434,2614.3,2613.8,0.38246]
[1724336346455,0.81980434,2614.3,2614.0,3.2078]
[1724336346661,0.38241,2614.2,2614.0,3.2078]
[1724336346863,0.38242,2614.1,2613.7,3.6594]
[1724336347464,0.38241,2614.2,2613.7,4.04188]
[1724336347760,0.81980434,2614.3,2613.8,0.38246]
[1724336348156,0.38241,2614.2,2613.8,0.38246]
[1724336348758,0.38241,2614.2,2613.7,4.04187]
[1724336348958,0.38241,2614.2,2613.8,0.38246]
[1724336349457,0.38241,2614.2,2614.0,3.2078]
[1724336350147,3.8256,2614.1,2613.6,0.437]
[1724336350354,3.74140434,2614.3,2613.4,0.4366]
[1724336350660,3.74140434,2614.3,2613.4,0.81912]
[1724336350661,0.38249,2613.7,2613.4,0.81912]
[1724336351157,0.38249,2613.7,2613.3,3.2078]
[1724336351158,3.8264,2613.7,2613.0,0.00299848]
[1724336351364,0.38252,2613.4,2613.1,0.80776]
[1724336351558,0.38254,2613.3,2613.2,3.2078]
[1724336351958,0.38254,2613.3,2613.0,0.00299848]
[1724336352159,0.38257,2613.1,2613.0,0.00299848]
[1724336352663,4.20977,2613.1,2613.0,0.00299848]
[1724336352856,1.21676,2613.2,2613.0,0.00299848]
[1724336353165,5.04396,2613.2,2613.0,0.00299848]
[1724336353369,0.38257,2613.1,2613.0,0.00299848]
[1724336353554,5.04396,2613.2,2613.0,0.00299848]
[1724336353751,1.21676,2613.2,2613.0,0.00299848]
[1724336354066,0.4255,2613.2,2613.0,0.00299848]
[1724336354257,0.38251,2613.5,2613.1,0.38256]
[1724336354457,4.5414,2613.6,2613.1,3.2078]
[1724336354658,0.38252,2613.5,2613.1,0.38256]
[1724336355058,4.5414,2613.6,2613.0,3.62039848]
[1724336355059,0.38253,2613.4,2613.0,3.62039848]
[1724336355258,4.5414,2613.6,2613.0,3.62039848]
[1724336355259,4.9239,2613.6,2613.0,3.62039848]
[1724336355454,4.5414,2613.6,2613.2,0.38255]
[1724336355662,4.089,2613.6,2613.5,0.38251]
[1724336356458,4.089,2613.6,2613.5,0.80981]
[1724336356659,2.30433282,2614.1,2613.8,0.38246]
[1724336356863,4.09180434,2614.3,2613.8,0.38246]
[1724336357063,4.09180434,2614.3,2613.7,0.19047837]
[1724336357260,0.38243,2614.1,2613.8,0.38246]
[1724336357461,0.38243,2614.1,2613.7,3.77870125]
[1724336357768,0.38243,2614.1,2613.7,3.2078]
[1724336357966,4.09180434,2614.3,2613.8,0.38246]
[1724336357967,0.38241,2614.2,2613.8,0.38246]
[1724336358267,0.38242,2614.1,2613.7,3.2078]
[1724336358468,0.38242,2614.1,2613.7,3.59027]
[1724336359870,0.38244,2614.0,2613.7,3.2078]
[1724336360067,1.47713282,2614.2,2613.7,3.2078]
[1724336360456,0.38244,2614.0,2613.7,3.2078]
[1724336360768,0.38241,2614.2,2613.8,0.38246]
[1724336360981,0.38241,2614.2,2613.7,3.2078]
[1724336360982,0.38243,2614.1,2613.7,3.59027]
[1724336361166,2.43315282,2614.2,2613.7,3.2078]
[1724336361364,0.38246,2613.9,2613.7,3.2078]
[1724336362370,0.38249,2613.7,2613.4,3.2078]
[1724336362668,0.79957,2613.8,2613.4,3.59032]
[1724336363255,0.431,2613.9,2613.5,0.3825]
[1724336363256,0.38245,2613.9,2613.5,0.3825]
[1724336363765,0.38244,2614.0,2613.6,0.80439]
[1724336364067,0.38245,2613.9,2613.6,0.80439]
[1724336364374,2.29055282,2614.1,2613.8,0.38246]
[1724336364570,0.431,2614.1,2613.9,0.38245]
[1724336365168,0.431,2614.1,2613.7,3.6566]
[1724336365358,0.38245,2613.9,2613.7,3.6566]
[1724336365671,0.38246,2613.9,2613.7,3.6566]
[1724336366061,0.38244,2614.0,2613.7,4.03908]
[1724336366472,1.90813282,2614.1,2613.7,4.03908]
[1724336366473,0.38246,2613.8,2613.7,3.2078]
[1724336366772,1.47713282,2614.0,2613.4,3.2078]
[1724336367068,1.47713282,2614.0,2613.7,3.2078]
[1724336367269,2.29056282,2614.1,2613.7,3.2078]
[1724336367571,0.81342,2614.1,2613.8,0.38245]
[1724336367773,0.431,2614.1,2613.9,0.38245]
[1724336368065,0.81342,2614.1,2613.9,0.38245]
[1724336368265,0.38244,2614.0,2613.8,0.4401]
[1724336368463,0.38244,2614.0,2613.8,0.82256]
[1724336368659,2.29055282,2614.1,2613.8,0.4401]
[1724336368860,0.38245,2613.9,2613.8,0.4401]
[1724336369056,0.38245,2613.9,2613.8,3.2078]
[1724336370071,9.78173,2613.9,2613.3,3.2078]
[1724336370269,0.38257,2613.1,2613.0,0.00299848]
[1724336370472,5.73734282,2613.7,2613.0,0.38557848]
[1724336370473,0.38256,2613.2,2613.0,0.38557848]
[1724336370662,0.38256,2613.2,2613.0,0.00299848]
[1724336370970,0.38253,2613.4,2613.1,0.38257]
[1724336371167,1.85965282,2613.5,2613.2,0.38255]
[1724336371370,0.38253,2613.4,2613.1,0.38256]
[1724336371555,1.85964282,2613.5,2613.2,0.38254]
[1724336371756,2.34063282,2613.6,2613.0,0.00299848]
[1724336371960,0.95631,2613.4,2613.0,0.00299848]
[1724336372273,0.38255,2613.2,2613.0,0.00299848]
[1724336372568,0.38254,2613.3,2613.0,0.38556848]
[1724336372772,0.38253,2613.4,2613.1,0.38256]
[1724336373475,0.38253,2613.4,2613.2,3.2078]
[1724336373667,1.47713282,2613.5,2613.2,3.59035]
[1724336373668,1.85965282,2613.5,2613.2,3.59035]
[1724336373869,0.38252,2613.4,2613.2,3.59035]
[1724336374866,0.38251,2613.5,2613.3,0.38254]
[1724336375167,2.72313282,2613.6,2613.4,0.38252]
[1724336375561,0.38249,2613.6,2613.2,3.6327]
[1724336375766,2.42011042,2613.8,2613.6,0.38249]
[1724336375767,1.85960282,2613.8,2613.6,0.38249]
[1724336375963,2.34573282,2613.9,2613.8,0.38246]
[1724336376167,1.85956282,2614.0,2613.9,0.38245]
[1724336376474,0.38245,2613.9,2613.7,0.38247]
[1724336376670,1.96951042,2614.2,2613.8,0.38246]
[1724336376671,1.47713282,2614.0,2613.8,0.38246]
[1724336376870,0.38245,2613.9,2613.8,0.38246]
[1724336377067,1.47713282,2614.1,2613.8,0.38246]
[1724336377272,0.38242,2614.1,2613.9,0.38245]
[1724336377575,1.47713282,2614.2,2613.8,3.2078]
[1724336377872,2.34853716,2614.3,2613.8,3.2078]
[1724336378077,0.38243,2614.1,2613.9,0.38244]
[1724336378463,0.38243,2614.1,2613.8,3.2078]
[1724336378774,2.73093716,2614.3,2613.8,3.2078]
[1724336378978,2.73093716,2614.3,2614.0,0.38242]
[1724336378979,0.87140434,2614.3,2614.0,0.38242]
[1724336379280,0.87140434,2614.3,2614.1,0.38242]
[1724336379281,0.43200434,2614.3,2614.1,0.38242]
[1724336379574,0.43200434,2614.3,2614.1,3.2078]
[1724336379778,0.00280434,2614.3,2614.1,3.2078]
[1724336379984,0.00280434,2614.3,2614.2,0.3824]
[1724336380275,0.00280434,2614.3,2614.2,4.6365]
[1724336381476,0.00574053,2614.5,2614.4,0.38238]
[1724336381670,0.38811053,2614.5,2614.2,0.4293]
[1724336382386,0.38238,2614.4,2614.2,0.4293]
[1724336382676,0.3824,2614.3,2614.1,3.2078]
[1724336382878,0.38238,2614.4,2614.1,3.2078]
[1724336383507,0.3824,2614.3,2614.1,3.2078]
[1724336383773,0.7998,2614.3,2613.9,0.4216]
[1724336384076,0.4174,2614.3,2613.9,0.4216]
[1724336384278,0.38245,2614.0,2613.8,0.4275]
[1724336384576,0.38245,2614.0,2613.2,3.2078]
[1724336384577,0.95613,2613.9,2613.2,3.2078]
[1724336384780,1.48344294,2613.9,2613.5,3.2078]
[1724336384980,1.48344294,2614.0,2613.6,0.38248]
[1724336385275,0.38244,2614.0,2613.6,0.38248]
[1724336385469,1.86587294,2614.1,2613.7,0.38247]
[1724336385875,1.48344294,2614.1,2613.9,3.2078]
[1724336386075,1.48344294,2614.1,2613.6,3.2078]
[1724336386273,1.92004294,2614.2,2613.7,0.38247]
[1724336386473,2.38691042,2614.3,2613.7,0.4293]
[1724336386474,1.48344294,2614.1,2613.7,0.4293]
[1724336386673,0.38241,2614.2,2613.9,3.59024]
[1724336386870,0.38241,2614.2,2613.9,0.38244]
[1724336387475,0.38241,2614.2,2614.0,0.38243]
[1724336388373,0.38241,2614.2,2614.1,3.2078]
[1724336388978,1.86585294,2614.2,2614.1,3.2078]
[1724336389180,0.38245,2614.0,2613.8,0.4327]
[1724336389377,0.38245,2613.9,2613.8,0.4327]
[1724336389677,1.86585294,2614.2,2613.5,3.2078]
[1724336389678,2.43950294,2614.1,2613.5,3.2078]
[1724336389876,0.38247,2613.8,2613.6,0.38249]
[1724336390183,2.43950294,2614.1,2613.6,0.38249]
[1724336390375,2.43950294,2614.1,2613.5,3.5903]
[1724336390576,0.95613,2613.9,2613.4,0.866]
[1724336390883,0.38251,2613.5,2613.4,0.866]
[1724336391086,2.43961294,2613.8,2613.4,0.866]
[1724336391087,0.3825,2613.6,2613.4,0.866]
[1724336391586,0.38249,2613.6,2613.4,0.866]
[1724336391784,0.38248,2613.7,2613.4,0.866]
[1724336391977,0.3825,2613.6,2613.4,4.0738]
[1724336392177,0.3825,2613.6,2613.4,0.866]
[1724336392484,0.3825,2613.6,2613.4,4.0738]
[1724336392689,0.38251,2613.5,2613.4,0.866]
[1724336392990,1.48344294,2613.7,2613.1,3.2078]
[1724336393283,0.38255,2613.2,2613.1,3.2078]
[1724336394384,0.38257,2613.1,2613.0,0.00299848]
[1724336394570,4.20977,2613.1,2613.0,0.00299848]
[1724336394773,5.69321294,2613.1,2613.0,0.00299848]
[1724336394971,4.20977,2613.1,2613.0,0.00299848]
[1724336400588,3.8272,2613.1,2613.0,0.00299848]
[1724336400890,0.4283,2613.3,2613.0,0.00299848]
[1724336401083,0.38256,2613.2,2613.0,0.00299848]
[1724336401289,0.4283,2613.3,2613.0,0.00299848]
[1724336401484,0.38257,2613.1,2613.0,0.00299848]
[1724336401983,4.20977,2613.1,2613.0,0.00299848]
[1724336403491,10.16619,2613.1,2613.0,0.00299848]
[1724336404582,4.20977,2613.1,2613.0,0.00299848]
[1724336404980,0.4283,2613.3,2613.0,0.00299848]
[1724336405182,0.4283,2613.3,2613.2,0.38255]
[1724336405390,1.94004294,2613.6,2613.3,0.38253]
[1724336405593,0.4566,2613.6,2613.1,3.59036]
[1724336405785,0.38252,2613.4,2613.1,3.59036]
[1724336406088,0.38253,2613.4,2613.1,3.59036]
[1724336406289,0.38254,2613.3,2613.1,3.59036]
[1724336406998,0.38255,2613.2,2613.1,3.2078]
[1724336408184,0.38256,2613.1,2613.0,0.00299848]
[1724336408384,5.16618,2613.1,2613.0,0.00299848]
[1724336408687,10.59078,2613.1,2613.0,0.00299848]
[1724336408889,5.59078,2613.1,2613.0,0.00299848]
[1724336409085,10.59078,2613.1,2613.0,0.00299848]
[1724336409282,5.59078,2613.1,2613.0,0.00299848]
[1724336409489,4.63436,2613.1,2613.0,0.00299848]
[1724336409683,0.38256,2613.2,2613.0,0.00299848]
[1724336409884,1.93444294,2613.5,2613.0,0.00299848]
[1724336410084,1.93444294,2613.5,2613.0,0.41529848]
[1724336410281,1.93444294,2613.5,2613.1,0.4401]
[1724336410483,0.83351,2613.5,2613.2,0.38255]
[1724336410689,5.14784294,2613.6,2613.2,0.38255]
[1724336410690,4.0469,2613.6,2613.4,0.38252]
[1724336411086,4.0469,2613.6,2613.3,0.38253]
[1724336411087,0.38252,2613.4,2613.3,0.38253]
[1724336411490,0.38251,2613.5,2613.3,0.38253]
[1724336411992,0.38252,2613.4,2613.2,3.59034]
[1724336412195,0.38251,2613.5,2613.3,0.38254]
[1724336412386,4.0469,2613.6,2613.2,3.2078]
[1724336412587,4.089,2613.7,2613.5,3.2078]
[1724336412793,4.089,2613.7,2613.6,0.38249]
[1724336413192,0.38246,2613.9,2613.5,3.2078]
[1724336413392,0.38246,2613.9,2613.6,0.4164]
[1724336413591,0.38246,2613.9,2613.6,0.79888]
[1724336414192,0.38244,2614.0,2613.7,0.38248]
[1724336414394,0.38245,2613.9,2613.7,0.8925]
[1724336414700,0.38245,2613.9,2613.7,1.27497]
[1724336414994,3.2078,2614.1,2613.5,3.2078]
[1724336415192,4.0555,2613.8,2613.1,1.21256]
[1724336415394,0.38251,2613.5,2613.2,0.38254]
[1724336416098,0.38251,2613.5,2613.1,0.83]
[1724336416400,0.38252,2613.5,2613.1,1.21256]
[1724336416584,0.38255,2613.2,2613.0,0.00299848]
[1724336416785,1.48344294,2613.5,2613.0,0.00299848]
[1724336416991,0.38256,2613.1,2613.0,0.00299848]
[1724336417191,0.38255,2613.2,2613.0,0.00299848]
[1724336417394,0.38254,2613.3,2613.0,0.00299848]
[1724336417600,0.38255,2613.2,2613.0,3.21079848]
[1724336417998,0.38254,2613.3,2613.0,3.21079848]
[1724336418292,0.38254,2613.3,2613.0,0.00299848]
[1724336418493,4.69124294,2613.6,2613.0,0.38557848]
[1724336418494,0.38253,2613.4,2613.0,0.38557848]
[1724336418693,0.38253,2613.4,2613.0,3.59337848]
[1724336419504,1.48344294,2613.6,2613.0,3.59337848]
[1724336419893,0.38255,2613.2,2613.0,0.00299848]
[1724336420193,0.38254,2613.3,2613.0,0.00299848]
[1724336420590,0.38254,2613.3,2613.0,3.21079848]
[1724336421002,0.38254,2613.3,2613.0,3.59337848]
[1724336421611,2.43970294,2613.6,2613.0,3.21079848]
[1724336421900,0.95627,2613.5,2613.0,3.21079848]
[1724336422196,0.38256,2613.1,2613.0,0.00299848]
[1724336422502,7.33478042,2613.5,2613.0,0.00299848]
[1724336422503,0.38256,2613.2,2613.0,0.00299848]
[1724336423194,0.95627,2613.5,2613.0,0.00299848]
[1724336423195,1.48344294,2613.5,2613.0,0.00299848]
[1724336423401,0.38251,2613.5,2613.3,0.38253]
[1724336423697,0.38253,2613.4,2613.2,0.38254]
[1724336424003,1.48344294,2613.7,2613.0,3.64149848]
[1724336424004,0.95626,2613.6,2613.0,3.64149848]
[1724336424191,0.95626,2613.6,2613.1,0.38256]
[1724336424192,0.38254,2613.3,2613.1,0.38256]
[1724336424588,0.38255,2613.2,2613.0,4.02406848]
[1724336424793,0.38254,2613.3,2613.1,0.38256]
[1724336425199,0.38253,2613.4,2613.2,0.38255]
[1724336425701,0.38254,2613.3,2613.1,0.38255]
[1724336426090,0.38253,2613.4,2613.2,0.79935]
[1724336426608,0.38254,2613.3,2613.2,0.4168]
[1724336426900,0.38254,2613.3,2613.2,0.79935]
[1724336427296,0.38254,2613.3,2613.2,0.4168]
[1724336427498,0.38256,2613.1,2613.0,0.00299848]
[1724336428100,4.20976,2613.1,2613.0,0.00299848]
[1724336428301,6.64962294,2613.1,2613.0,0.00299848]
[1724336428499,5.16618,2613.1,2613.0,0.00299848]
[1724336428705,7.13569042,2613.1,2613.0,0.00299848]